bitfinex-derivatives/quotes_ETHF0:USTF0_20241013
["timestamp","ask_amount","ask_price","bid_price","bid_amount"]
[1728854396706,4.93411,2461.5,2461.4,0.48611588]
[1728854396908,7.59565482,2461.5,2461.4,0.48611588]
[1728854397107,1.72631,2461.5,2461.4,0.48611588]
[1728854397314,4.38785482,2461.5,2461.4,0.48611588]
[1728854397512,4.93411,2461.5,2461.4,0.48611588]
[1728854397817,7.59565482,2461.5,2461.4,0.48611588]
[1728854398116,4.93411,2461.5,2461.4,0.48611588]
[1728854398516,7.59565482,2461.5,2461.4,0.48611588]
[1728854398716,7.59565482,2461.5,2461.4,0.48612169]
[1728854398916,7.59565482,2461.5,2461.4,0.4861215]
[1728854399316,7.59565482,2461.5,2461.4,0.48612363]
[1728854400116,0.40633,2461.4,2461.3,2.38145605]
[1728854400419,0.81723,2461.4,2461.3,2.38145605]
[1728854400719,0.81723,2461.4,2461.3,8.91756535]
[1728854400720,2.13342764,2461.4,2461.3,8.91756535]
[1728854400912,5.74754764,2461.5,2461.3,7.90489587]
[1728854401123,5.34122764,2461.5,2461.4,5.18591568]
[1728854401418,5.74753764,2461.5,2461.4,3.69081423]
[1728854401621,5.74753764,2461.5,2461.4,3.9483781]
[1728854402010,5.74753764,2461.5,2461.4,5.94813537]
[1728854402321,5.74753764,2461.5,2461.4,3.9483781]
[1728854403321,3.61411,2461.5,2461.4,3.9483781]
[1728854403514,5.74753764,2461.5,2461.4,3.9483781]
[1728854403717,3.61411,2461.5,2461.4,3.94835984]
[1728854404014,5.74753764,2461.5,2461.4,3.94835984]
[1728854404222,3.61411,2461.5,2461.4,3.94835984]
[1728854404424,5.74753764,2461.5,2461.4,4.5021359]
[1728854404812,3.61411,2461.5,2461.4,4.5021359]
[1728854405017,3.61411,2461.5,2461.4,3.44018057]
[1728854405218,3.61411,2461.5,2461.4,3.94835746]
[1728854405420,3.61411,2461.5,2461.4,4.50208225]
[1728854405819,3.61411,2461.5,2461.4,4.50206798]
[1728854406215,3.61411,2461.5,2461.4,4.90839798]
[1728854407321,3.61411,2461.5,2461.4,4.90837968]
[1728854407527,3.61411,2461.5,2461.4,4.50204968]
[1728854408734,0.40631,2461.5,2461.4,4.50204968]
[1728854409234,0.40631,2461.5,2461.4,4.50122812]
[1728854410342,0.40631,2461.5,2461.4,3.91682208]
[1728854410633,0.40631,2461.5,2461.4,4.50122898]
[1728854411030,0.40631,2461.5,2461.4,4.9075557]
[1728854411228,0.40631,2461.5,2461.4,4.5012257]
[1728854411430,0.40631,2461.5,2461.4,4.50122074]
[1728854411628,0.40631,2461.5,2461.4,2.86787717]
[1728854412129,0.40631,2461.5,2461.4,3.27420717]
[1728854414831,0.40631,2461.5,2461.4,2.86788605]
[1728854415535,2.53973764,2461.5,2461.4,2.86788605]
[1728854415925,2.53973764,2461.5,2461.4,3.27421605]
[1728854417136,0.40631,2461.5,2461.4,3.84567992]
[1728854418544,0.40631,2461.5,2461.4,3.10558641]
[1728854418840,0.40631,2461.5,2461.4,4.90757801]
[1728854419035,3.61411,2461.5,2461.4,4.90757801]
[1728854420031,0.40631,2461.5,2461.4,3.58757801]
[1728854420227,3.61411,2461.5,2461.4,3.58757801]
[1728854421338,3.61411,2461.5,2461.4,3.58761903]
[1728854422738,3.61411,2461.5,2461.4,3.0032009]
[1728854422937,3.61411,2461.5,2461.4,3.58762073]
[1728854423139,0.40631,2461.5,2461.4,3.58762073]
[1728854423635,0.40631,2461.5,2461.4,2.52573844]
[1728854424037,3.61411,2461.5,2461.4,2.52573844]
[1728854426338,3.61411,2461.5,2461.4,2.5260212]
[1728854427239,3.2078,2461.5,2461.4,2.5260212]
[1728854427737,3.2078,2461.5,2461.4,3.8460212]
[1728854427943,3.61411,2461.5,2461.4,3.8460212]
[1728854429532,0.40631,2461.5,2461.4,4.35421082]
[1728854429733,3.61411,2461.5,2461.4,3.8460212]
[1728854429941,3.61411,2461.5,2461.4,3.10591019]
[1728854430146,3.2078,2461.5,2461.4,3.84606071]
[1728854430445,3.2078,2461.5,2461.4,4.35425035]
[1728854431047,3.2078,2461.5,2461.4,3.8458418]
[1728854431648,3.2078,2461.5,2461.4,3.4395118]
[1728854431950,3.2078,2461.5,2461.4,3.8458418]
[1728854432453,3.2078,2461.5,2461.4,3.26142372]
[1728854432750,3.2078,2461.5,2461.4,3.84584185]
[1728854433444,3.35322764,2461.6,2461.5,0.40631]
[1728854433653,6.56102764,2461.6,2461.5,1.95411362]
[1728854433852,6.56102764,2461.6,2461.5,0.56198581]
[1728854434044,6.56102764,2461.6,2461.5,1.95405725]
[1728854436845,3.35322764,2461.6,2461.5,1.95405725]
[1728854437351,6.56102764,2461.6,2461.5,1.95405725]
[1728854437649,6.56102764,2461.6,2461.5,1.95404719]
[1728854438748,3.35322764,2461.6,2461.5,1.95404719]
[1728854438949,6.56102764,2461.6,2461.5,1.95404719]
[1728854439950,3.35322764,2461.6,2461.5,1.95404719]
[1728854440453,1.2198,2461.6,2461.5,1.95404719]
[1728854440653,4.4276,2461.6,2461.5,1.95404719]
[1728854441346,4.4276,2461.6,2461.5,1.95404715]
[1728854442152,6.56079211,2461.6,2461.5,1.95404715]
[1728854443452,6.56079211,2461.6,2461.5,3.58750196]
[1728854443648,6.56079211,2461.6,2461.5,2.20813635]
[1728854443947,6.56079211,2461.6,2461.5,1.95404715]
[1728854444352,6.56079211,2461.6,2461.5,4.09565539]
[1728854445347,6.56079211,2461.6,2461.5,2.71631584]
[1728854445549,4.4276,2461.6,2461.5,3.03388879]
[1728854445744,4.4276,2461.6,2461.5,3.0339069]
[1728854448554,1.2198,2461.6,2461.5,3.0339069]
[1728854448757,4.4276,2461.6,2461.5,3.0339069]
[1728854450055,6.5614551,2461.6,2461.5,3.0339069]
[1728854450360,3.3536551,2461.6,2461.5,3.03366769]
[1728854450654,4.4276,2461.6,2461.5,3.03366769]
[1728854451059,3.35360973,2461.6,2461.5,3.03366769]
[1728854451355,6.56140973,2461.6,2461.5,3.03366769]
[1728854451855,4.4276,2461.6,2461.5,3.03366769]
[1728854452255,4.4276,2461.6,2461.5,3.58752977]
[1728854452560,4.4276,2461.6,2461.5,3.03365676]
[1728854452561,6.56135808,2461.6,2461.5,3.03365676]
[1728854452961,4.4276,2461.6,2461.5,3.58805237]
[1728854453159,3.2078,2461.6,2461.5,4.90805237]
[1728854453359,0.095,2462.0,2461.9,0.40625]
[1728854453552,1.72623,2462.0,2461.9,2.87668424]
[1728854453856,7.02913,2462.0,2461.9,0.33022915]
[1728854454061,7.02913,2462.0,2461.9,0.12701121]
[1728854456661,7.02913,2462.0,2461.9,0.1270389]
[1728854457064,5.70913,2462.0,2461.9,0.12703693]
[1728854457264,1.2413,2462.0,2461.9,0.73653473]
[1728854457463,1.2413,2462.0,2461.9,0.53328693]
[1728854457761,1.2413,2462.0,2461.9,0.73653198]
[1728854458057,1.2413,2462.0,2461.9,0.53328693]
[1728854460664,1.2413,2462.0,2461.9,0.40625]
[1728854460860,3.2078,2462.2,2462.1,0.40621]
[1728854461066,3.2078,2462.2,2462.1,0.73648099]
[1728854461255,3.2078,2462.2,2462.1,1.79823187]
[1728854461455,3.2078,2462.2,2462.1,0.73648099]
[1728854462062,3.2078,2462.2,2462.1,1.79823187]
[1728854462259,3.2078,2462.2,2462.1,0.73648099]
[1728854462956,1.188,2462.3,2462.2,0.4062]
[1728854463158,1.188,2462.3,2462.2,1.85322996]
[1728854463355,4.0111,2462.3,2462.2,1.7262]
[1728854463557,0.8033,2462.3,2462.2,1.85320495]
[1728854463763,0.8033,2462.3,2462.2,2.05640727]
[1728854463956,3.2078,2462.6,2462.2,6.11800727]
[1728854464163,3.2078,2462.6,2462.5,0.40615]
[1728854464369,3.2078,2462.6,2462.5,0.53315495]
[1728854465257,3.2078,2462.6,2462.5,1.72615]
[1728854465461,3.2078,2462.6,2462.5,1.85313756]
[1728854465868,3.2078,2462.6,2462.5,5.91393756]
[1728854466367,3.2078,2462.6,2462.5,5.78695]
[1728854467266,3.2078,2462.6,2462.5,5.91393769]
[1728854467468,3.2078,2462.6,2462.5,5.91393393]
[1728854468170,3.2078,2462.6,2462.5,5.78695]
[1728854468666,3.2078,2462.6,2462.5,4.46695]
[1728854468863,3.2078,2462.6,2462.5,5.78695]
[1728854469565,4.5278,2462.6,2462.2,1.06175088]
[1728854469767,0.40617,2462.4,2462.3,0.40618]
[1728854470176,1.23657,2462.4,2462.3,0.40618]
[1728854470471,1.23657,2462.4,2462.2,2.78793088]
[1728854470672,1.23657,2462.4,2462.3,1.32]
[1728854470872,1.23657,2462.4,2462.3,1.72618]
[1728854471076,1.23657,2462.4,2462.3,1.32]
[1728854471470,1.23657,2462.4,2462.3,1.72618]
[1728854472075,1.23657,2462.4,2462.3,1.32]
[1728854474975,1.23657,2462.4,2462.3,1.72618]
[1728854475163,1.23657,2462.4,2462.3,1.32]
[1728854476868,0.40618,2462.3,2462.2,1.72619]
[1728854477271,0.40618,2462.3,2462.2,5.78779]
[1728854477467,0.40618,2462.3,2462.2,1.72619]
[1728854477975,0.40618,2462.3,2462.2,5.78779]
[1728854481181,0.40618,2462.3,2462.2,1.72619]
[1728854484183,0.82358,2462.3,2462.2,1.72619]
[1728854484881,0.40621,2462.2,2462.1,0.40621]
[1728854485083,1.7374,2462.3,2461.8,4.60487933]
[1728854485084,0.40622,2462.1,2462.0,0.40622]
[1728854488588,0.40622,2462.1,2462.0,1.72622]
[1728854491086,0.40622,2462.1,2462.0,0.40622]
[1728854491282,1.72622,2462.1,2462.0,0.40622]
[1728854491887,0.40623,2462.0,2461.9,1.72623]
[1728854492094,0.40625,2461.9,2461.8,0.40626]
[1728854492384,0.40625,2461.9,2461.8,1.72626]
[1728854492385,0.81125,2461.9,2461.8,1.72626]
[1728854493286,2.13125,2461.9,2461.8,0.40626]
[1728854493488,0.81125,2461.9,2461.8,1.72626]
[1728854498590,0.81125,2461.9,2461.8,1.85328581]
[1728854498991,0.81125,2461.9,2461.8,1.72626]
[1728854499293,0.81125,2461.9,2461.8,1.85328577]
[1728854501195,0.81125,2461.9,2461.8,1.72626]
[1728854501391,0.81125,2461.9,2461.8,1.85328451]
[1728854503592,0.81125,2461.9,2461.8,0.53328451]
[1728854503792,0.81125,2461.9,2461.8,1.85328451]
[1728854504694,0.81125,2461.9,2461.8,1.44702451]
[1728854504895,0.81125,2461.9,2461.8,1.85328451]
[1728854508306,0.81125,2461.9,2461.8,1.44702538]
[1728854508497,0.81125,2461.9,2461.8,1.85328538]
[1728854510998,0.8058,2462.0,2461.8,5.71184932]
[1728854511196,0.8058,2462.0,2461.9,1.85327538]
[1728854511894,0.8058,2462.0,2461.9,1.72625]
[1728854512203,0.8058,2462.0,2461.9,1.85326226]
[1728854513399,0.8058,2462.0,2461.9,2.05648492]
[1728854514502,0.4034,2462.0,2461.9,7.17386425]
[1728854515999,0.4034,2462.0,2461.9,3.11226425]
[1728854516600,0.4034,2462.0,2461.9,7.17386425]
[1728854518306,0.4034,2462.0,2461.9,7.32917297]
[1728854518502,0.8175,2462.2,2462.1,0.40621]
[1728854518708,0.8175,2462.2,2462.1,2.05644492]
[1728854519007,0.8175,2462.2,2462.1,3.11568723]
[1728854519710,0.8175,2462.2,2462.1,2.05642349]
[1728854520396,0.4165,2462.2,2462.1,3.11567879]
[1728854520595,0.4165,2462.2,2462.1,2.05642349]
[1728854520999,0.4165,2462.2,2462.1,1.72621]
[1728854521196,3.62,2462.3,2462.2,0.4062]
[1728854521401,3.62,2462.3,2462.2,3.27096665]
[1728854521602,3.62,2462.3,2462.2,3.27096225]
[1728854521796,3.62,2462.3,2462.2,3.11567605]
[1728854522207,3.62,2462.3,2462.2,3.11565798]
[1728854522599,0.4215,2462.4,2462.2,6.77105798]
[1728854522805,0.4215,2462.4,2462.3,2.05638268]
[1728854523097,0.4215,2462.4,2462.3,3.11530692]
[1728854525200,0.4215,2462.4,2462.3,7.17610692]
[1728854526004,0.4215,2462.4,2462.3,6.84590424]
[1728854526215,0.4215,2462.4,2462.3,7.17607678]
[1728854527410,0.8067,2462.5,2462.4,0.40616]
[1728854527608,0.8067,2462.5,2462.4,1.85314944]
[1728854529808,0.8067,2462.5,2462.4,2.05633412]
[1728854530513,0.8067,2462.5,2462.4,6.11713412]
[1728854530806,0.8067,2462.5,2462.4,7.42255836]
[1728854531206,0.8067,2462.5,2462.4,8.81722063]
[1728854531406,0.8067,2462.5,2462.4,7.42255836]
[1728854533116,4.6228,2462.8,2462.7,0.40611]
[1728854533117,0.5011,2462.8,2462.7,0.40611]
[1728854533308,1.6095,2462.8,2462.7,1.85309944]
[1728854533509,1.2034,2462.8,2462.7,1.85309944]
[1728854533710,1.2034,2462.8,2462.7,1.85308303]
[1728854535315,0.7886,2462.8,2462.7,5.91388303]
[1728854535811,0.7886,2462.8,2462.7,5.91388404]
[1728854536316,0.7886,2462.8,2462.7,5.91388399]
[1728854536907,0.4236,2463.0,2462.7,11.50777399]
[1728854537108,0.4236,2463.0,2462.9,1.72608]
[1728854537311,0.4236,2463.0,2462.9,5.78608]
[1728854537716,0.4236,2463.0,2462.9,5.91304096]
[1728854538215,0.4236,2463.0,2462.9,5.78608]
[1728854539418,0.82966,2463.0,2462.9,1.72608]
[1728854539715,0.82966,2463.0,2462.9,0.40608]
[1728854541207,0.40608,2462.9,2462.7,1.7261]
[1728854541409,1.7436,2463.0,2462.7,1.7261]
[1728854541610,0.82967,2463.0,2462.9,1.72608]
[1728854541906,0.82967,2463.0,2462.9,1.32]
[1728854542318,0.82967,2463.0,2462.9,1.72608]
[1728854542509,0.82967,2463.0,2462.9,1.32]
[1728854546715,0.82967,2463.0,2462.9,1.72608]
[1728854546919,0.4236,2463.0,2462.9,1.72608]
[1728854547623,0.095,2463.4,2463.3,0.40602]
[1728854547816,3.2078,2464.1,2463.5,1.42094]
[1728854548021,3.2078,2464.3,2464.0,1.32]
[1728854548212,3.2078,2464.3,2464.2,1.32]
[1728854548524,3.61365,2464.3,2464.2,1.32]
[1728854548826,3.61365,2464.3,2464.2,5.3784]
[1728854549022,0.40585,2464.3,2464.2,5.3784]
[1728854549226,0.40584,2464.4,2464.2,5.3784]
[1728854549524,0.4181,2464.5,2464.2,5.3784]
[1728854549525,0.82392,2464.5,2464.4,1.32]
[1728854549719,0.4181,2464.5,2464.4,1.32]
[1728854550820,0.4181,2464.5,2464.0,4.1888]
[1728854551027,0.4181,2464.5,2464.3,1.32]
[1728854551028,0.82392,2464.5,2464.3,1.32]
[1728854552233,0.82393,2464.5,2464.3,1.32]
[1728854552723,0.4181,2464.5,2464.3,1.32]
[1728854552923,0.40583,2464.4,2464.3,1.32]
[1728854553224,0.82393,2464.5,2464.3,1.32]
[1728854553723,0.40583,2464.4,2464.3,1.32]
[1728854563331,0.40587,2464.2,2464.0,0.40589]
[1728854563531,0.40587,2464.2,2464.1,1.32]
[1728854564337,0.40587,2464.2,2464.1,1.72588]
[1728854565341,0.40587,2464.2,2464.1,1.32]
[1728854565728,0.40587,2464.2,2464.1,1.72588]
[1728854566541,0.40587,2464.2,2464.1,5.78428]
[1728854567135,0.40587,2464.2,2464.1,1.32]
[1728854571634,0.40587,2464.2,2464.1,1.72588]
[1728854572430,0.40587,2464.2,2464.1,1.32]
[1728854572838,0.40587,2464.2,2464.1,1.72588]
[1728854576531,0.79397,2464.2,2464.1,1.72588]
[1728854579235,0.3881,2464.2,2464.1,1.72588]
[1728854579837,0.3881,2464.2,2464.1,0.40588]
[1728854580045,0.79397,2464.2,2464.1,0.40588]
[1728854580345,0.3881,2464.2,2464.1,0.40588]
[1728854581043,0.79397,2464.2,2464.1,0.40588]
[1728854581539,0.3881,2464.2,2464.1,0.40588]
[1728854582154,0.79397,2464.2,2464.1,0.40588]
[1728854582349,0.3881,2464.2,2464.1,0.40588]
[1728854582534,0.7705,2464.2,2464.1,0.40588]
[1728854585250,0.4059,2464.1,2464.0,1.72589]
[1728854585952,1.17637,2464.2,2464.1,0.40588]
[1728854586153,1.17637,2464.2,2464.1,1.72588]
[1728854592653,1.17637,2464.2,2464.1,1.85278651]
[1728854593457,1.17637,2464.2,2464.1,5.70098065]
[1728854594547,1.17637,2464.2,2464.1,5.19336069]
[1728854594849,1.17637,2464.2,2464.1,5.19347523]
[1728854595153,1.17637,2464.2,2464.1,5.7010998]
[1728854595553,1.17637,2464.2,2464.1,5.19347523]
[1728854596252,1.17637,2464.2,2464.1,5.19347868]
[1728854598261,1.17637,2464.2,2464.1,5.70110626]
[1728854599456,0.7705,2464.2,2464.1,5.70132619]
[1728854599973,0.7705,2464.2,2464.1,5.70134226]
[1728854600256,0.7705,2464.2,2464.1,6.20366737]
[1728854600458,0.7705,2464.2,2464.1,4.61722817]
[1728854603650,0.7705,2464.2,2464.1,4.10958006]
[1728854604057,0.7705,2464.2,2464.1,4.61716745]
[1728854604256,0.7705,2464.2,2464.1,3.22102455]
[1728854604466,0.7705,2464.2,2464.1,4.61713539]
[1728854607154,0.7705,2464.2,2464.1,6.73238765]
[1728854607471,1.17637,2464.2,2464.1,4.61709925]
[1728854608260,1.17637,2464.2,2464.1,5.70403714]
[1728854608456,1.17637,2464.2,2464.1,5.95260369]
[1728854608662,1.17637,2464.2,2464.1,5.95784076]
[1728854608863,1.17637,2464.2,2464.1,5.70403714]
[1728854609062,0.7705,2464.2,2464.1,5.70416276]
[1728854610167,0.7705,2464.2,2464.1,6.20652779]
[1728854610568,0.7705,2464.2,2464.1,4.61728057]
[1728854610864,0.7705,2464.2,2464.1,6.20655904]
[1728854611069,0.7705,2464.2,2464.1,4.71139493]
[1728854611261,0.7705,2464.2,2464.1,6.20662351]
[1728854611968,0.7705,2464.2,2464.1,6.20664824]
[1728854612471,0.7705,2464.2,2464.1,4.61734504]
[1728854613171,0.3881,2464.2,2464.1,6.7325973]
[1728854613372,0.422,2464.3,2464.1,13.9893235]
[1728854613575,0.422,2464.3,2464.2,3.29733504]
[1728854613770,0.422,2464.3,2464.2,3.29714111]
[1728854614069,0.422,2464.3,2464.2,7.35554111]
[1728854614476,0.422,2464.3,2464.2,11.88334111]
[1728854614776,0.422,2464.3,2464.2,10.89571506]
[1728854614963,0.422,2464.3,2464.2,11.8831452]
[1728854615164,0.4022,2464.5,2464.2,12.7972752]
[1728854615361,0.204,2465.4,2464.4,9.76745067]
[1728854615566,0.52308566,2466.1,2465.3,4.5278]
[1728854615765,0.4138,2466.2,2465.8,1.0574751]
[1728854615766,3.8576,2465.9,2465.8,1.0574751]
[1728854615985,3.8576,2465.9,2465.8,2.791523]
[1728854616275,0.4138,2466.2,2465.8,3.17288412]
[1728854616576,3.2078,2466.6,2466.1,4.26260934]
[1728854616871,3.8576,2466.3,2466.2,0.28556649]
[1728854617077,3.8576,2466.3,2466.2,1.18169874]
[1728854617279,4.24680189,2466.3,2466.2,1.32]
[1728854617478,3.61328,2466.6,2466.2,6.30787743]
[1728854617673,3.61328,2466.6,2466.3,0.40551]
[1728854617674,3.8576,2466.5,2466.3,0.40551]
[1728854617869,3.8576,2466.5,2466.4,0.40551]
[1728854618069,3.8576,2466.4,2466.2,3.25553]
[1728854618266,3.8576,2466.4,2466.2,3.25552]
[1728854618577,3.8576,2466.4,2466.2,2.85]
[1728854620573,3.8576,2466.3,2466.1,3.2078]
[1728854620875,3.8576,2466.2,2466.1,3.2078]
[1728854625078,0.40557,2466.1,2465.7,3.70741]
[1728854625285,4.26318,2466.0,2465.7,4.1468]
[1728854625583,3.8576,2466.0,2465.7,3.2078]
[1728854625782,0.40559,2465.9,2465.7,3.2078]
[1728854626081,3.8576,2465.9,2465.7,3.2078]
[1728854626282,4.2632,2465.9,2465.7,3.2078]
[1728854626488,0.4056,2465.8,2465.7,3.2078]
[1728854627184,0.40569,2465.3,2465.2,0.707]
[1728854627382,4.26329,2465.3,2465.0,0.40573]
[1728854627579,4.26329,2465.3,2464.8,4.1468]
[1728854627580,0.3839,2465.2,2464.8,4.1468]
[1728854627781,4.2415,2465.2,2464.9,0.40574]
[1728854627980,4.2415,2465.2,2464.9,4.79037763]
[1728854627981,4.6472,2465.2,2464.9,4.79037763]
[1728854628184,4.2415,2465.2,2465.0,0.40574]
[1728854628388,4.2415,2465.2,2464.9,4.79037763]
[1728854628389,4.64721,2465.2,2464.9,4.79037763]
[1728854629275,0.40572,2465.1,2464.9,4.38463763]
[1728854629482,0.40572,2465.1,2464.9,4.79038763]
[1728854629675,0.40572,2465.1,2464.9,4.38463763]
[1728854630086,0.3839,2465.2,2464.9,7.64037763]
[1728854630288,5.03641189,2465.2,2464.9,7.64037763]
[1728854630881,0.77310189,2465.2,2464.9,7.64037763]
[1728854631080,0.40573,2465.1,2464.9,7.64037763]
[1728854631694,0.40573,2465.1,2464.9,4.38463763]
[1728854631990,0.40573,2465.1,2464.8,3.2078]
[1728854631991,4.26334,2465.0,2464.8,3.2078]
[1728854632179,3.8576,2465.0,2464.8,3.2078]
[1728854632387,0.40575,2464.9,2464.8,3.2078]
[1728854634974,4.26335,2464.9,2464.8,3.2078]
[1728854636980,4.65255189,2464.9,2464.8,1.2965]
[1728854637296,4.65255189,2464.9,2464.5,0.094]
[1728854637297,0.4058,2464.6,2464.5,0.094]
[1728854637584,0.40585,2464.3,2464.2,0.094]
[1728854637788,0.40588,2464.2,2464.0,3.6137]
[1728854637988,0.35488,2464.2,2464.0,3.6137]
[1728854638190,0.30388,2464.2,2464.0,3.6137]
[1728854638489,0.25488,2464.2,2464.0,3.6137]
[1728854639384,4.22233,2464.6,2464.0,3.2078]
[1728854639583,0.40588,2464.1,2464.0,3.6137]
[1728854639889,3.8576,2464.3,2464.0,3.6137]
[1728854640084,0.40588,2464.2,2464.0,3.6137]
[1728854640284,4.26348,2464.1,2464.0,3.2078]
[1728854640486,4.26348,2464.1,2464.0,3.6137]
[1728854640487,3.8576,2464.1,2464.0,3.6137]
[1728854640686,4.24680189,2464.1,2464.0,3.6137]
[1728854643887,0.40584,2464.4,2464.2,0.40585]
[1728854644086,0.388,2464.5,2464.0,12.0578]
[1728854644087,3.8576,2464.3,2464.0,10.32275725]
[1728854644289,3.8576,2464.3,2464.2,0.40587]
[1728854644887,0.40589,2464.1,2463.7,0.40595]
[1728854645093,4.87225,2464.3,2464.1,0.40588]
[1728854645094,4.65267189,2464.3,2464.1,0.40588]
[1728854645284,4.65267189,2464.3,2464.0,4.31053638]
[1728854645285,0.40587,2464.2,2464.0,4.31053638]
[1728854645490,0.40587,2464.2,2464.0,0.4059]
[1728854646092,3.8576,2464.1,2464.0,0.4059]
[1728854646491,4.24680189,2464.1,2464.0,0.4059]
[1728854646991,0.40588,2464.2,2464.1,0.40588]
[1728854647194,4.26348,2464.2,2464.1,0.40588]
[1728854647590,4.26348,2464.2,2464.0,0.4059]
[1728854647797,4.26348,2464.2,2464.1,0.40588]
[1728854649703,4.26348,2464.2,2464.0,0.40589]
[1728854649704,3.8576,2464.2,2464.0,0.40589]
[1728854649888,4.26347,2464.2,2464.1,0.40588]
[1728854650093,3.8576,2464.1,2463.8,4.51653952]
[1728854650294,3.8576,2464.0,2463.9,0.4059]
[1728854650800,4.2635,2464.0,2463.9,0.4059]
[1728854651400,3.8576,2464.0,2463.9,0.4059]
[1728854654599,3.8576,2464.0,2463.9,3.6137]
[1728854654805,3.8576,2464.0,2463.9,4.4338]
[1728854655306,3.8576,2464.0,2463.9,3.6137]
[1728854655606,2.8423939,2464.0,2463.9,3.6137]
[1728854659597,2.8423939,2464.0,2463.9,0.4059]
[1728854659801,2.8423939,2464.0,2463.9,3.6137]
[1728854660904,2.8423939,2464.0,2463.9,3.2078]
[1728854661100,2.8423939,2464.0,2463.9,0.40592]
[1728854661608,2.8423939,2464.0,2463.9,3.61372]
[1728854664615,0.8027,2464.4,2464.1,0.40588]
[1728854664813,2.8423939,2464.2,2464.1,0.40588]
[1728854665507,3.2482639,2464.2,2464.1,0.40588]
[1728854666016,3.2482639,2464.2,2464.0,1.72589]
[1728854666217,3.63746579,2464.2,2464.0,0.40589]
[1728854667112,2.8423939,2464.1,2464.0,0.40589]
[1728854670519,2.7423939,2464.1,2464.0,0.40589]
[1728854670916,2.2423939,2464.1,2464.0,0.40589]
[1728854671226,2.2423939,2464.1,2464.0,1.46069934]
[1728854671227,1.7431939,2464.1,2464.0,1.46069934]
[1728854671725,1.2434939,2464.1,2464.0,1.46069934]
[1728854672221,0.7434939,2464.1,2464.0,3.03273803]
[1728854673016,0.7434939,2464.1,2464.0,3.03069976]
[1728854673224,0.7434939,2464.1,2464.0,3.72079474]
[1728854674123,0.7434939,2464.1,2464.0,3.9238291]
[1728854674318,0.7434939,2464.1,2464.0,4.43141502]
[1728854674526,0.7434939,2464.1,2464.0,7.63921502]
[1728854675030,0.7434939,2464.1,2464.0,4.43141502]
[1728854675237,0.7434939,2464.1,2464.0,6.30712448]
[1728854675428,0.13439051,2464.1,2464.0,6.30712448]
[1728854676232,0.13439051,2464.1,2464.0,8.42217249]
[1728854676530,0.13439051,2464.1,2464.0,3.09942435]
[1728854676735,0.13439051,2464.1,2464.0,6.30722435]
[1728854676935,0.13439051,2464.1,2464.0,8.42217455]
[1728854677230,0.13439051,2464.1,2464.0,12.37469097]
[1728854678232,0.13439051,2464.1,2464.0,12.37480568]
[1728854678433,0.13439051,2464.1,2464.0,10.05845333]
[1728854678737,0.13439051,2464.1,2464.0,12.37529646]
[1728854679438,0.54027051,2464.1,2464.0,12.37529646]
[1728854680339,0.54027051,2464.1,2464.0,12.90561209]
[1728854680539,0.54027051,2464.1,2464.0,10.26023155]
[1728854680836,11.61417604,2465.4,2464.0,9.85434155]
[1728854680837,4.113,2465.0,2464.0,9.85434155]
[1728854681037,4.113,2465.0,2464.3,5.7298783]
[1728854681038,0.13439051,2464.4,2464.3,5.7298783]
[1728854681335,0.13439051,2464.4,2464.3,19.7192801]
[1728854682335,0.13439051,2464.4,2464.3,15.13773501]
[1728854682533,1.1951,2464.6,2464.3,17.58190736]
[1728854682736,1.1951,2464.6,2464.5,1.72582]
[1728854682737,1.32949051,2464.6,2464.5,1.72582]
[1728854682940,0.53899051,2464.6,2464.5,8.37280018]
[1728854683135,0.53899051,2464.6,2464.5,15.66434679]
[1728854683739,0.53899051,2464.6,2464.5,13.01903019]
[1728854684240,0.53899051,2464.6,2464.5,13.43273019]
[1728854684443,0.53899051,2464.6,2464.5,12.36685672]
[1728854685233,0.53899051,2464.6,2464.5,14.48110859]
[1728854686138,0.53899051,2464.6,2464.5,13.64328956]
[1728854686437,0.53899051,2464.6,2464.5,14.4807511]
[1728854686745,2.1105,2465.0,2464.5,18.13234582]
[1728854686746,0.40576,2464.9,2464.5,18.13234582]
[1728854686945,0.80456,2464.9,2464.8,1.05693826]
[1728854687245,0.80456,2464.9,2464.7,2.78271826]
[1728854687246,1.3281524,2464.9,2464.7,2.78271826]
[1728854687542,0.13439051,2464.8,2464.7,2.37693826]
[1728854687740,0.54016051,2464.8,2464.7,3.94678203]
[1728854688838,0.54016051,2464.8,2464.7,4.35256203]
[1728854689337,0.54016051,2464.8,2464.7,2.90960613]
[1728854689648,0.13439051,2464.8,2464.7,2.90960613]
[1728854690151,3.2078,2465.3,2464.7,24.79083942]
[1728854690443,0.38920189,2465.3,2465.2,5.98934645]
[1728854690636,0.5235924,2465.3,2465.2,7.43091662]
[1728854690839,0.8336,2465.4,2465.3,0.40569]
[1728854691038,0.96799051,2465.4,2465.3,1.46129164]
[1728854691838,0.13439051,2465.4,2465.3,2.78129164]
[1728854692045,0.13439051,2465.4,2465.3,10.20487864]
[1728854692249,0.13439051,2465.4,2465.3,10.07801338]
[1728854692636,0.8336,2465.7,2465.6,0.40564]
[1728854692845,0.8336,2465.7,2465.6,4.93344]
[1728854692846,1.22280189,2465.7,2465.6,4.93344]
[1728854693043,1.3571924,2465.7,2465.6,4.93344]
[1728854698848,0.40554,2466.2,2465.6,13.14053193]
[1728854699048,0.4191,2466.0,2465.9,0.40557]
[1728854699249,0.55349051,2466.0,2465.9,0.40557]
[1728854699446,0.9426924,2466.0,2465.9,0.40557]
[1728854700253,0.3962,2466.1,2466.0,0.40557]
[1728854700550,0.3962,2466.1,2466.0,10.16729903]
[1728854700746,5.54142,2466.8,2466.0,9.76172903]
[1728854700747,3.2078,2466.8,2466.0,9.76172903]
[1728854700948,3.2078,2466.8,2466.2,4.93334]
[1728854700949,0.13439051,2466.3,2466.2,4.93334]
[1728854701147,0.53539051,2466.3,2466.2,4.93334]
[1728854701850,0.53539051,2466.3,2466.2,3.2078]
[1728854702149,0.9245924,2466.3,2466.2,3.2078]
[1728854703152,0.9245924,2466.3,2466.2,3.61334]